Departmental family,Entity,Date Paid,Expense type,Expense Area,Supplier,Transaction Number, Amount , Description , Supplier Type ,Expenditure Type,
UK Statistics Authority,Office for National Statistics,1 March 2017,Non IT Contractual Payments,Office of the Chief Economic Adviser,IFF Research,18017," 26,980.20 ", Statistical Services , Large ,Programme,
UK Statistics Authority,Office for National Statistics,1 March 2017,Contractors,Digital Services Technology and Methodology,E Synergy Solutions,18019," 62,676.00 ", Information Management Services , SME ,Programme,
UK Statistics Authority,Office for National Statistics,1 March 2017,ICT Outsourcing & Maint./Support,Digital Services Technology and Methodology,E Synergy Solutions,18019," 10,152.00 ", Information Management Services , SME ,Programme,
UK Statistics Authority,Office for National Statistics,1 March 2017,Surveys,Central Policy Secretariat,Natcen Social Research,18022," 180,000.00 ", Statistical Services , Large ,Programme,
UK Statistics Authority,Office for National Statistics,1 March 2017,Surveys,Central Policy Secretariat,Natcen Social Research,18022," 9,002.40 ", Statistical Services , Large ,Programme,
UK Statistics Authority,UK Statistics Authority,1 March 2017,Surveys,UK Statistics Authority,Natcen Social Research,18022," 8,436.00 ", Statistical Services , Large ,Programme,
UK Statistics Authority,Office for National Statistics,1 March 2017,Vouchers,Social Surveys,Park Retail Ltd,18023," 30,422.36 ", Incentive vouchers , Large ,Programme,
UK Statistics Authority,Office for National Statistics,1 March 2017,Other Travel,Corporate Support,Redfern Travel,18031," 37,851.69 ", Travel and Accommodation Booking Service , SME ,Programme,
UK Statistics Authority,Office for National Statistics,1 March 2017,Contractors,Business Services and Development,LA International,18042," 14,333.68 ", Information Management Services , SME ,Programme,
UK Statistics Authority,Office for National Statistics,1 March 2017,Contractors,Digital Services Technology and Methodology,LA International,18042," 2,396.94 ", Information Management Services , SME ,Programme,
UK Statistics Authority,Office for National Statistics,1 March 2017,Short-Term Contract & Agency Staff - Full Cost,Census,LA International,18042," 10,226.88 ", Information Management Services , SME ,Programme,
UK Statistics Authority,Office for National Statistics,1 March 2017,Non IT Contractual Payments,Census,Pinsent Masons,18045," 31,171.20 ", Legal Services , Large ,Programme,
UK Statistics Authority,Office for National Statistics,1 March 2017,Contractors,Business Services and Development,Parity Resources Limited,18048," 6,726.72 ", Information Management Services , Large ,Programme,
UK Statistics Authority,Office for National Statistics,1 March 2017,Contractors,Business Services and Development,Parity Resources Limited,18048," 2,142.00 ", Information Management Services , Large ,Programme,
UK Statistics Authority,Office for National Statistics,1 March 2017,Contractors,Business Services and Development,Parity Resources Limited,18048," 14,277.72 ", Information Management Services , Large ,Programme,
UK Statistics Authority,Office for National Statistics,1 March 2017,Contractors,Data Collection,Parity Resources Limited,18048," 3,625.96 ", Information Management Services , Large ,Programme,
UK Statistics Authority,Office for National Statistics,1 March 2017,Contractors,Data Collection,Parity Resources Limited,18048," 3,581.42 ", Information Management Services , Large ,Programme,
UK Statistics Authority,Office for National Statistics,1 March 2017,Contractors,Digital Services Technology and Methodology,Parity Resources Limited,18048," 34,010.99 ", Information Management Services , Large ,Programme,
UK Statistics Authority,Office for National Statistics,1 March 2017,Contractors,Organisational Development,Parity Resources Limited,18048," 5,471.09 ", Information Management Services , Large ,Programme,
UK Statistics Authority,Office for National Statistics,1 March 2017,Contractors,Organisational Development,Parity Resources Limited,18048," 25,326.00 ", Information Management Services , Large ,Programme,
UK Statistics Authority,Office for National Statistics,1 March 2017,Contractors,Portfolio Design,Parity Resources Limited,18048," 12,151.26 ", Information Management Services , Large ,Programme,
UK Statistics Authority,Office for National Statistics,1 March 2017,Non IT Contractual Payments,Data Collection,Parity Resources Limited,18048," 1,230.82 ", Information Management Services , Large ,Programme,
UK Statistics Authority,Office for National Statistics,1 March 2017,Other Travel,Organisational Development,Parity Resources Limited,18048, 18.00 , Information Management Services , Large ,Programme,
UK Statistics Authority,Office for National Statistics,1 March 2017,Other Travel,Portfolio Design,Parity Resources Limited,18048, 347.17 , Information Management Services , Large ,Programme,
UK Statistics Authority,Office for National Statistics,1 March 2017,Other Travel,Social and Analysis,Parity Resources Limited,18048, 50.02 , Information Management Services , Large ,Programme,
UK Statistics Authority,Office for National Statistics,1 March 2017,Short-Term Contract & Agency Staff - Full Cost,Business Services and Development,Parity Resources Limited,18048," 1,264.68 ", Information Management Services , Large ,Programme,
UK Statistics Authority,Office for National Statistics,1 March 2017,Short-Term Contract & Agency Staff - Full Cost,Business Services and Development,Parity Resources Limited,18048, 282.24 , Information Management Services , Large ,Programme,
UK Statistics Authority,Office for National Statistics,1 March 2017,Short-Term Contract & Agency Staff - Full Cost,Census,Parity Resources Limited,18048," 3,572.23 ", Information Management Services , Large ,Programme,
UK Statistics Authority,Office for National Statistics,1 March 2017,Short-Term Contract & Agency Staff - Full Cost,Census,Parity Resources Limited,18048," 3,805.97 ", Information Management Services , Large ,Programme,
UK Statistics Authority,Office for National Statistics,1 March 2017,Short-Term Contract & Agency Staff - Full Cost,Census,Parity Resources Limited,18048," 2,323.78 ", Information Management Services , Large ,Programme,
UK Statistics Authority,Office for National Statistics,1 March 2017,Short-Term Contract & Agency Staff - Full Cost,Data Collection,Parity Resources Limited,18048," 3,602.82 ", Information Management Services , Large ,Programme,
UK Statistics Authority,Office for National Statistics,1 March 2017,Short-Term Contract & Agency Staff - Full Cost,Data Collection,Parity Resources Limited,18048," 3,527.14 ", Information Management Services , Large ,Programme,
UK Statistics Authority,Office for National Statistics,1 March 2017,Short-Term Contract & Agency Staff - Full Cost,Data Collection,Parity Resources Limited,18048," 1,867.48 ", Information Management Services , Large ,Programme,
UK Statistics Authority,Office for National Statistics,1 March 2017,Short-Term Contract & Agency Staff - Full Cost,Data Collection,Parity Resources Limited,18048," 3,597.03 ", Information Management Services , Large ,Programme,
UK Statistics Authority,Office for National Statistics,1 March 2017,Short-Term Contract & Agency Staff - Full Cost,Social and Analysis,Parity Resources Limited,18048," 3,805.98 ", Information Management Services , Large ,Programme,
UK Statistics Authority,Office for National Statistics,2 March 2017,FM Contract Payments,Corporate Support,Vinci Construction UK Limited,18416," 316,798.88 ", Facilities Management , Large ,Programme,
UK Statistics Authority,Office for National Statistics,3 March 2017,Contractors,Digital Services Technology and Methodology,Certes Computing Ltd,18818," 32,284.20 ", Information Management Services , SME ,Programme,
UK Statistics Authority,Office for National Statistics,3 March 2017,Contractors,National Accounts and Economic Statistics,Certes Computing Ltd,18818," 11,491.20 ", Information Management Services , SME ,Programme,
UK Statistics Authority,Office for National Statistics,3 March 2017,Contractors,Central Policy Secretariat,LA International,18819," 19,431.17 ", Information Management Services , SME ,Programme,
UK Statistics Authority,Office for National Statistics,3 March 2017,Contractors,Digital Services Technology and Methodology,LA International,18819," 10,359.47 ", Information Management Services , SME ,Programme,
UK Statistics Authority,Office for National Statistics,3 March 2017,ICT Outsourcing & Maint./Support,Digital Services Technology and Methodology,QA Ltd,18821," 61,620.00 ", Information Management Services , Large ,Programme,
UK Statistics Authority,Office for National Statistics,6 March 2017,Contractors,Business Services and Development,Methods Professional Services,18879," 11,812.08 ", Information Management Services , SME ,Programme,
UK Statistics Authority,Office for National Statistics,6 March 2017,Contractors,Portfolio Design,Methods Professional Services,18879," 3,993.60 ", Information Management Services , SME ,Programme,
UK Statistics Authority,Office for National Statistics,6 March 2017,Contractors,Portfolio Design,Methods Professional Services,18879," 16,636.20 ", Information Management Services , SME ,Programme,
UK Statistics Authority,Office for National Statistics,6 March 2017,ICT Outsourcing & Maint./Support,Digital Services Technology and Methodology,KCOM Group PLC,18884," 62,730.72 ", Information Management Services , Small ,Programme,
UK Statistics Authority,Office for National Statistics,6 March 2017,IT Purchases >2k,Digital Services Technology and Methodology,KCOM Group PLC,18884," 175,644.00 ", Information Management Services , Small ,Programme,
UK Statistics Authority,Office for National Statistics,6 March 2017,Other ICT Costs Software,Digital Services Technology and Methodology,KCOM Group PLC,18884," 170,077.68 ", Information Management Services , Small ,Programme,
UK Statistics Authority,Office for National Statistics,7 March 2017,Furniture Costing >2k FSMS,Property Newport,The Senator Group,19077," 57,965.86 ", Smart Working Furniture , Large ,Programme,
UK Statistics Authority,Office for National Statistics,8 March 2017,ICT Outsourcing & Maint./Support,Digital Services Technology and Methodology,Landmark Information Group,19093," 48,582.70 ", Information Management Services , Large ,Programme,
UK Statistics Authority,Office for National Statistics,8 March 2017,Childcare Services,Corporate Support,Computershare Voucher Services,19099," 35,772.17 ", Childcare Vouchers , Large ,Programme,
UK Statistics Authority,Office for National Statistics,8 March 2017,Childcare Services,Finance,Computershare Voucher Services,19099," 2,790.23 ", Childcare Vouchers , Large ,Programme,
UK Statistics Authority,Office for National Statistics,8 March 2017,ICT Outsourcing & Maint./Support,Digital Services Technology and Methodology,Valtech Ltd,19102," 79,555.50 ", Information Management Services , Large ,Programme,
UK Statistics Authority,Office for National Statistics,9 March 2017,Contractors,Digital Services Technology and Methodology,Certes Computing Ltd,19346," 29,965.20 ", Information Management Services , SME ,Programme,
UK Statistics Authority,Office for National Statistics,10 March 2017,Other Ict Costs Software,Digital Services Technology and Methodology,Automated Intelligence Ltd,19828," 90,480.00 ", Subscription Licenses , SME ,Programme,
UK Statistics Authority,Office for National Statistics,10 March 2017,Procurement Card,Corporate Support,Royal Bank of Scotland,19837," 22,831.16 ", Multiple Procurement Card Purchases , Large ,Programme,
UK Statistics Authority,Office for National Statistics,10 March 2017,Stationery,Corporate Support,Royal Bank of Scotland,19837," 8,797.31 ", Multiple Procurement Card Purchases , Large ,Programme,
UK Statistics Authority,Office for National Statistics,13 March 2017,ICT Outsourcing & Maint./Support,Finance,Certus Solutions Consulting Services Ltd,19937," 28,680.04 ", Information Management Services , SME ,Programme,
UK Statistics Authority,Office for National Statistics,15 March 2017,ICT ,Finance,SCC,20359," 78,594.72 ", Information Management Services , Large ,Programme,
UK Statistics Authority,Office for National Statistics,15 March 2017,ICT Outsourcing & Maint./Support,Digital Services Technology and Methodology,Indigoblue,20365," 27,600.00 ", Information Management Services , Large ,Programme,
UK Statistics Authority,Office for National Statistics,15 March 2017,ICT Outsourcing & Maint./Support,National Accounts and Economic Statistics,Indigoblue,20365," 10,260.00 ", Information Management Services , Large ,Programme,
UK Statistics Authority,Office for National Statistics,15 March 2017,ICT Outsourcing & Maint./Support,Digital Services Technology and Methodology,The Sensible Code Company,20366," 74,359.81 ", Information Management Services , SME ,Programme,
UK Statistics Authority,Office for National Statistics,15 March 2017,Contractors,Digital Services Technology and Methodology,LA International,20367," 13,358.98 ", Information Management Services , SME ,Programme,
UK Statistics Authority,Office for National Statistics,15 March 2017,Contractors,National Accounts and Economic Statistics,LA International,20367," 12,144.42 ", Information Management Services , SME ,Programme,
UK Statistics Authority,Office for National Statistics,16 March 2017,Contractors,Digital Services Technology and Methodology,RSM Partners Ltd,20381," 187,444.16 ", Information Management Services , SME ,Programme,
UK Statistics Authority,Office for National Statistics,16 March 2017,ICT Outsourcing & Maint./Support,Digital Services Technology and Methodology,Valtech Ltd,20391," 105,432.00 ", Information Management Services , Large ,Programme,
UK Statistics Authority,Office for National Statistics,17 March 2017,Non IT Contractual Payments,Social and Analysis,London School of Hygiene & Tropical Medicine,20398," 29,689.00 ", Statistical Services , Large ,Programme,
UK Statistics Authority,Office for National Statistics,17 March 2017,Contractors,Digital Services Technology and Methodology,Methods Digital Ltd,20402," 18,900.00 ", Information Management Services , Large ,Programme,
UK Statistics Authority,Office for National Statistics,17 March 2017,Ict Outsourcing & Maint./Support,Digital Services Technology and Methodology,Methods Digital Ltd,20402," 49,050.00 ", Information Management Services , Large ,Programme,
UK Statistics Authority,Office for National Statistics,17 March 2017,Electricity,Property Titchfield,EDF Energy,30000329," 28,496.41 ", Titchfield Electricity Charges  , Large ,Programme,
UK Statistics Authority,Office for National Statistics,17 March 2017,Electricity,Property London,EDF Energy,30000330," 27,036.47 ", Newport Electricity Charges  , Large ,Programme,
UK Statistics Authority,Office for National Statistics,17 March 2017,Electricity,Property Newport,EDF Energy,30000331," 27,723.72 ", Newport Electricity Charges  , Large ,Programme,
UK Statistics Authority,Office for National Statistics,20 March 2017,Capital Major Works >25k,Property Newport,Central Roofing Ltd,20908," 196,486.90 ", Major Works Newport , SME ,Programme,
UK Statistics Authority,Office for National Statistics,20 March 2017,Major Works Over 25k,Property Newport,Central Roofing Ltd,20908," 18,606.28 ", Major Works Newport , SME ,Programme,
UK Statistics Authority,Office for National Statistics,23 March 2017,ICT Outsourcing & Maint./Support,Digital Services Technology and Methodology,QA Ltd,21631," 75,120.00 ", Information Management Services , Large ,Programme,
UK Statistics Authority,Office for National Statistics,24 March 2017,ICT Outsourcing & Maint./Support,Digital Services Technology and Methodology,QA Ltd,21638," 142,200.00 ", Information Management Services , Large ,Programme,
UK Statistics Authority,Office for National Statistics,29 March 2017,Contractors,Digital Services Technology and Methodology,E Synergy Solutions,22191," 191,205.00 ", Information Management Services , SME ,Programme,
UK Statistics Authority,Office for National Statistics,29 March 2017,Non IT Contractual Payments,Data Collection,NatCen Social Research,22192," 36,285.60 ", Statistical Services , Large ,Programme,
UK Statistics Authority,Office for National Statistics,29 March 2017,Contractors,Census,Hays,22193," 3,536.51 ", Information Management Services , Large ,Programme,
UK Statistics Authority,Office for National Statistics,29 March 2017,Contractors,Data Collection,Hays,22193," 3,694.97 ", Information Management Services , Large ,Programme,
UK Statistics Authority,Office for National Statistics,29 March 2017,Short-Term Contract & Agency Staff - Full Cost,Business Services and Development,Hays,22193," 1,669.82 ", Information Management Services , Large ,Programme,
UK Statistics Authority,Office for National Statistics,29 March 2017,Short-Term Contract & Agency Staff - Full Cost,Business Services and Development,Hays,22193," 3,259.31 ", Information Management Services , Large ,Programme,
UK Statistics Authority,Office for National Statistics,29 March 2017,Short-Term Contract & Agency Staff - Full Cost,Business Services and Development,Hays,22193, 202.18 , Information Management Services , Large ,Programme,
UK Statistics Authority,Office for National Statistics,29 March 2017,Short-Term Contract & Agency Staff - Full Cost,Census,Hays,22193," 2,039.41 ", Information Management Services , Large ,Programme,
UK Statistics Authority,Office for National Statistics,29 March 2017,Short-Term Contract & Agency Staff - Full Cost,Census,Hays,22193, 289.12 , Information Management Services , Large ,Programme,
UK Statistics Authority,Office for National Statistics,29 March 2017,Short-Term Contract & Agency Staff - Full Cost,Data Collection,Hays,22193," 3,889.45 ", Information Management Services , Large ,Programme,
UK Statistics Authority,Office for National Statistics,29 March 2017,Short-Term Contract & Agency Staff - Full Cost,Data Collection,Hays,22193," 3,694.97 ", Information Management Services , Large ,Programme,
UK Statistics Authority,Office for National Statistics,29 March 2017,Short-Term Contract & Agency Staff - Full Cost,Digital Services Technology and Methodology,Hays,22193," 3,928.86 ", Information Management Services , Large ,Programme,
UK Statistics Authority,Office for National Statistics,29 March 2017,Short-Term Contract & Agency Staff - Full Cost,Digital Services Technology and Methodology,Hays,22193," 3,355.18 ", Information Management Services , Large ,Programme,
UK Statistics Authority,Office for National Statistics,29 March 2017,Short-Term Contract & Agency Staff - Full Cost,Digital Services Technology and Methodology,Hays,22193," 3,834.32 ", Information Management Services , Large ,Programme,
UK Statistics Authority,Office for National Statistics,29 March 2017,Short-Term Contract & Agency Staff - Full Cost,Social and Analysis,Hays,22193," 3,889.44 ", Information Management Services , Large ,Programme,
UK Statistics Authority,Office for National Statistics,29 March 2017,Training & Development,Census,Hays,22193, 717.58 , Information Management Services , Large ,Programme,
UK Statistics Authority,Office for National Statistics,29 March 2017,Consultancy,Digital Services Technology and Methodology,Sopra Steria,22198," 14,092.33 ", Information Management Services , Large ,Programme,
UK Statistics Authority,Office for National Statistics,29 March 2017,Contractors,Digital Services Technology and Methodology,Sopra Steria,22198," 17,882.92 ", Information Management Services , Large ,Programme,
UK Statistics Authority,Office for National Statistics,29 March 2017,Other Travel,Corporate Support,Redfern Travel,22200," 132,093.78 ", Travel and Accommodation Booking Service , SME ,Programme,
UK Statistics Authority,Office for National Statistics,29 March 2017,Postage,Data Collection,UK Mail,22201," 71,016.14 ", Outgoing Postage , Large ,Programme,
UK Statistics Authority,Office for National Statistics,29 March 2017,Contractors,Business Services and Development,LA International,22204," 9,779.40 ", Information Management Services , SME ,Programme,
UK Statistics Authority,Office for National Statistics,29 March 2017,Contractors,Central Policy Secretariat,LA International,22204," 14,573.38 ", Information Management Services , SME ,Programme,
UK Statistics Authority,Office for National Statistics,29 March 2017,Contractors,Digital Services Technology and Methodology,LA International,22204," 23,288.57 ", Information Management Services , SME ,Programme,
UK Statistics Authority,Office for National Statistics,29 March 2017,Contractors,Portfolio Design,LA International,22204," 12,144.48 ", Information Management Services , SME ,Programme,
UK Statistics Authority,Office for National Statistics,29 March 2017,ICT Outsourcing & Maint./Support,Digital Services Technology and Methodology,LA International,22204, 231.44 , Information Management Services , SME ,Programme,
UK Statistics Authority,Office for National Statistics,29 March 2017,Contractors,Digital Services Technology and Methodology,Parity Resources Limited,22208," 12,151.26 ", Information Management Services , Large ,Programme,
UK Statistics Authority,Office for National Statistics,29 March 2017,Contractors,Finance,Parity Resources Limited,22208," 18,291.00 ", Information Management Services , Large ,Programme,
UK Statistics Authority,Office for National Statistics,29 March 2017,Contractors,Finance,Parity Resources Limited,22208," 7,738.50 ", Information Management Services , Large ,Programme,
UK Statistics Authority,Office for National Statistics,29 March 2017,Short-Term Contract & Agency Staff - Full Cost,Census,Parity Resources Limited,22208," 3,803.39 ", Information Management Services , Large ,Programme,
UK Statistics Authority,Office for National Statistics,30 March 2017,Consultancy,Central Support,Concept Information Technology Ltd T/A Concept Resourcing,22438," 5,460.00 ", Information Management Services , Large ,Programme,
UK Statistics Authority,Office for National Statistics,30 March 2017,Short-Term Contract & Agency Staff - Full Cost,Digital Services Technology and Methodology,Concept Information Technology Ltd T/A Concept Resourcing,22438," 23,754.00 ", Information Management Services , Large ,Programme,
UK Statistics Authority,Office for National Statistics,30 March 2017,Capital Major Works >25k,Property Newport,Paramount Office Interiors Ltd,30000350," 377,409.23 ", Major Works Newport , SME ,Programme,
UK Statistics Authority,Office for National Statistics,30 March 2017,Major Works Over 25k,Property Newport,Paramount Office Interiors Ltd,30000350," 368,728.67 ", Major Works Newport , SME ,Programme,
UK Statistics Authority,Office for National Statistics,30 March 2017,Capital Major Works >25k,Property Newport,Paramount Office Interiors Ltd,30000351," 407,444.40 ", Major Works Newport , SME ,Programme,
UK Statistics Authority,Office for National Statistics,30 March 2017,Major Works Over 25k,Property Newport,Paramount Office Interiors Ltd,30000351," 295,045.96 ", Major Works Newport , SME ,Programme,
UK Statistics Authority,Office for National Statistics,30 March 2017,Surveys,Data Collection,National Centre,30000352," 299,909.23 ", Statistical Services , Large ,Programme,
UK Statistics Authority,Office for National Statistics,30 March 2017,Capital Major Works >25k,Property Newport,Central Roofing Ltd,30000353," 253,127.66 ", Major Works Newport , SME ,Programme,
UK Statistics Authority,Office for National Statistics,30 March 2017,Major Works Over 25k,Property Newport,Central Roofing Ltd,30000353," 63,281.92 ", Major Works Newport , SME ,Programme,
UK Statistics Authority,Office for National Statistics,31 March 2017,FM Contract Payments,Corporate Support,Vinci Construction UK Limited,30000356," 328,465.78 ", Facilities Management , Large ,Programme,
